{"text_format":"1","workbook":"xlsx","n_sheets":16,"sheets":["Sheet1","Sheet2","Sheet3","Sheet4","Sheet5","Sheet6","Sheet7","Sheet8","Sheet9","Sheet10","Sheet11","Sheet12","Sheet13","Sheet14","Sheet16","Sheet17"],"not_rendered":{"charts":0,"images":48,"macros":1,"external_links":0,"defined_names":3,"comments":1,"pivot_tables":0},"unopened":[],"bounds":{"document_bytes":16777216,"sheet_cells":100000,"rows_first":2000,"rows_last":500,"rows_between":2000,"halvings":0,"cell_chars":16384,"cell_head_chars":4096},"cells_cut":0,"cells_raw":0,"read":"whole","date_system":"1900"}

{"sheet":"Sheet1","index":0,"n_rows":0,"n_cols":0,"rows_kept":0,"cut":false,"hidden":false,"merged":[]}

{"sheet":"Sheet2","index":1,"n_rows":29,"n_cols":5,"rows_kept":29,"cut":false,"hidden":false,"merged":[[28,2,28,3],[26,2,26,3],[25,2,25,3],[27,2,27,3],[0,2,0,3]]}
["Sheet2","أسـم الـعميل","عيد "]
[]
[]
["م","اســــم الــــــصـنــــــــــــف","كـــمـيــه","ســعــــر","قــيـمــه"]
[{"$f":"IF(B5>1,1,\" \")","v":1},"زاويه",3,8,{"$f":"IFERROR(IF(C5>0.1,C5*D5,\" \"),\" \")","v":24}]
[{"$f":"IF(B6>0.1,A5+1,\" \")","v":" "},null,null,null,{"$f":"IFERROR(IF(C6>0.1,C6*D6,\" \"),\" \")","v":" "}]
[{"$f":"IF(B7>0.1,A6+1,\" \")","v":" "},null,null,null," "]
[" ",null,null,null," "]
[" ",null,null,null," "]
[" ",null,null,null," "]
[" ",null,null,null," "]
[" ",null,null,null," "]
[" ",null,null,null," "]
[" ",null,null,null," "]
[" ",null,null,null," "]
[" ",null,null,null," "]
[" ",null,null,null," "]
[" ",null,null,null," "]
[" ",null,null,null," "]
[" ",null,null,null," "]
[" ",null,null,null," "]
[" ",null,null,null," "]
[" ",null,null,null," "]
[" ",null,null,null," "]
[]
[null,"عــدد الأصناف","الـقـيمه"]
[null,{"$f":"IF(B5>0.01,COUNTA(B5:B24),\" \")","v":1},{"$f":"IF(D5>0.01,SUM(E5:E24),\" \")","v":24}]
[null,"نولون"]
[null,"الأجمالى",{"$f":"IFERROR(C27+C28,\" \")","v":24}]

{"sheet":"Sheet3","index":2,"n_rows":29,"n_cols":5,"rows_kept":29,"cut":false,"hidden":false,"merged":[[0,2,0,3],[25,2,25,3],[26,2,26,3],[27,2,27,3],[28,2,28,3]]}
["Sheet2","أسـم الـعميل"]
[]
[]
["م","اســــم الــــــصـنــــــــــــف","كـــمـيــه","ســعــــر","قــيـمــه"]
[{"$f":"IF(B5>1,1,\" \")","v":" "},null,null,null,{"$f":"IFERROR(IF(C5>0.1,C5*D5,\" \"),\" \")","v":" "}]
[{"$f":"IF(B6>0.1,A5+1,\" \")","v":" "},null,null,null,{"$f":"IFERROR(IF(C6>0.1,C6*D6,\" \"),\" \")","v":" "}]
[{"$f":"IF(B7>0.1,A6+1,\" \")","v":" "},null,null,null," "]
[" ",null,null,null," "]
[" ",null,null,null," "]
[" ",null,null,null," "]
[" ",null,null,null," "]
[" ",null,null,null," "]
[" ",null,null,null," "]
[" ",null,null,null," "]
[" ",null,null,null," "]
[" ",null,null,null," "]
[" ",null,null,null," "]
[" ",null,null,null," "]
[" ",null,null,null," "]
[" ",null,null,null," "]
[" ",null,null,null," "]
[" ",null,null,null," "]
[" ",null,null,null," "]
[" ",null,null,null," "]
[]
[null,"عــدد الأصناف","الـقـيمه"]
[null,{"$f":"IF(B5>0.01,COUNTA(B5:B24),\" \")","v":" "},{"$f":"IF(D5>0.01,SUM(E5:E24),\" \")","v":" "}]
[null,"نولون"]
[null,"الأجمالى",{"$f":"IFERROR(C27+C28,\" \")","v":" "}]

{"sheet":"Sheet4","index":3,"n_rows":29,"n_cols":5,"rows_kept":29,"cut":false,"hidden":false,"merged":[[0,2,0,3],[25,2,25,3],[26,2,26,3],[27,2,27,3],[28,2,28,3]]}
[null,"أسـم الـعميل"]
[]
[]
["م","اســــم الــــــصـنــــــــــــف","كـــمـيــه","ســعــــر","قــيـمــه"]
[{"$f":"IF(B5>1,1,\" \")","v":" "},null,null,null,{"$f":"IFERROR(IF(C5>0.1,C5*D5,\" \"),\" \")","v":" "}]
[{"$f":"IF(B6>0.1,A5+1,\" \")","v":" "},null,null,null,{"$f":"IFERROR(IF(C6>0.1,C6*D6,\" \"),\" \")","v":" "}]
[{"$f":"IF(B7>0.1,A6+1,\" \")","v":" "},null,null,null," "]
[" ",null,null,null," "]
[" ",null,null,null," "]
[" ",null,null,null," "]
[" ",null,null,null," "]
[" ",null,null,null," "]
[" ",null,null,null," "]
[" ",null,null,null," "]
[" ",null,null,null," "]
[" ",null,null,null," "]
[" ",null,null,null," "]
[" ",null,null,null," "]
[" ",null,null,null," "]
[" ",null,null,null," "]
[" ",null,null,null," "]
[" ",null,null,null," "]
[" ",null,null,null," "]
[" ",null,null,null," "]
[]
[null,"عــدد الأصناف","الـقـيمه"]
[null,{"$f":"IF(B5>0.01,COUNTA(B5:B24),\" \")","v":" "},{"$f":"IF(D5>0.01,SUM(E5:E24),\" \")","v":" "}]
[null,"نولون"]
[null,"الأجمالى",{"$f":"IFERROR(C27+C28,\" \")","v":" "}]

{"sheet":"Sheet5","index":4,"n_rows":29,"n_cols":5,"rows_kept":29,"cut":false,"hidden":false,"merged":[[0,2,0,3],[25,2,25,3],[26,2,26,3],[27,2,27,3],[28,2,28,3]]}
[null,"أسـم الـعميل"]
[]
[]
["م","اســــم الــــــصـنــــــــــــف","كـــمـيــه","ســعــــر","قــيـمــه"]
[{"$f":"IF(B5>1,1,\" \")","v":" "},null,null,null,{"$f":"IFERROR(IF(C5>0.1,C5*D5,\" \"),\" \")","v":" "}]
[{"$f":"IF(B6>0.1,A5+1,\" \")","v":" "},null,null,null,{"$f":"IFERROR(IF(C6>0.1,C6*D6,\" \"),\" \")","v":" "}]
[{"$f":"IF(B7>0.1,A6+1,\" \")","v":" "},null,null,null," "]
[" ",null,null,null," "]
[" ",null,null,null," "]
[" ",null,null,null," "]
[" ",null,null,null," "]
[" ",null,null,null," "]
[" ",null,null,null," "]
[" ",null,null,null," "]
[" ",null,null,null," "]
[" ",null,null,null," "]
[" ",null,null,null," "]
[" ",null,null,null," "]
[" ",null,null,null," "]
[" ",null,null,null," "]
[" ",null,null,null," "]
[" ",null,null,null," "]
[" ",null,null,null," "]
[" ",null,null,null," "]
[]
[null,"عــدد الأصناف","الـقـيمه"]
[null,{"$f":"IF(B5>0.01,COUNTA(B5:B24),\" \")","v":" "},{"$f":"IF(D5>0.01,SUM(E5:E24),\" \")","v":" "}]
[null,"نولون"]
[null,"الأجمالى",{"$f":"IFERROR(C27+C28,\" \")","v":" "}]

{"sheet":"Sheet6","index":5,"n_rows":29,"n_cols":5,"rows_kept":29,"cut":false,"hidden":false,"merged":[[0,2,0,3],[25,2,25,3],[26,2,26,3],[27,2,27,3],[28,2,28,3]]}
[null,"أسـم الـعميل"]
[]
[]
["م","اســــم الــــــصـنــــــــــــف","كـــمـيــه","ســعــــر","قــيـمــه"]
[{"$f":"IF(B5>1,1,\" \")","v":" "},null,null,null,{"$f":"IFERROR(IF(C5>0.1,C5*D5,\" \"),\" \")","v":" "}]
[{"$f":"IF(B6>0.1,A5+1,\" \")","v":" "},null,null,null,{"$f":"IFERROR(IF(C6>0.1,C6*D6,\" \"),\" \")","v":" "}]
[{"$f":"IF(B7>0.1,A6+1,\" \")","v":" "},null,null,null," "]
[" ",null,null,null," "]
[" ",null,null,null," "]
[" ",null,null,null," "]
[" ",null,null,null," "]
[" ",null,null,null," "]
[" ",null,null,null," "]
[" ",null,null,null," "]
[" ",null,null,null," "]
[" ",null,null,null," "]
[" ",null,null,null," "]
[" ",null,null,null," "]
[" ",null,null,null," "]
[" ",null,null,null," "]
[" ",null,null,null," "]
[" ",null,null,null," "]
[" ",null,null,null," "]
[" ",null,null,null," "]
[]
[null,"عــدد الأصناف","الـقـيمه"]
[null,{"$f":"IF(B5>0.01,COUNTA(B5:B24),\" \")","v":" "},{"$f":"IF(D5>0.01,SUM(E5:E24),\" \")","v":" "}]
[null,"نولون"]
[null,"الأجمالى",{"$f":"IFERROR(C27+C28,\" \")","v":" "}]

{"sheet":"Sheet7","index":6,"n_rows":29,"n_cols":5,"rows_kept":29,"cut":false,"hidden":false,"merged":[[0,2,0,3],[25,2,25,3],[26,2,26,3],[27,2,27,3],[28,2,28,3]]}
[null,"أسـم الـعميل"]
[]
[]
["م","اســــم الــــــصـنــــــــــــف","كـــمـيــه","ســعــــر","قــيـمــه"]
[{"$f":"IF(B5>1,1,\" \")","v":" "},null,null,null,{"$f":"IFERROR(IF(C5>0.1,C5*D5,\" \"),\" \")","v":" "}]
[{"$f":"IF(B6>0.1,A5+1,\" \")","v":" "},null,null,null,{"$f":"IFERROR(IF(C6>0.1,C6*D6,\" \"),\" \")","v":" "}]
[{"$f":"IF(B7>0.1,A6+1,\" \")","v":" "},null,null,null," "]
[" ",null,null,null," "]
[" ",null,null,null," "]
[" ",null,null,null," "]
[" ",null,null,null," "]
[" ",null,null,null," "]
[" ",null,null,null," "]
[" ",null,null,null," "]
[" ",null,null,null," "]
[" ",null,null,null," "]
[" ",null,null,null," "]
[" ",null,null,null," "]
[" ",null,null,null," "]
[" ",null,null,null," "]
[" ",null,null,null," "]
[" ",null,null,null," "]
[" ",null,null,null," "]
[" ",null,null,null," "]
[]
[null,"عــدد الأصناف","الـقـيمه"]
[null,{"$f":"IF(B5>0.01,COUNTA(B5:B24),\" \")","v":" "},{"$f":"IF(D5>0.01,SUM(E5:E24),\" \")","v":" "}]
[null,"نولون"]
[null,"الأجمالى",{"$f":"IFERROR(C27+C28,\" \")","v":" "}]

{"sheet":"Sheet8","index":7,"n_rows":29,"n_cols":5,"rows_kept":29,"cut":false,"hidden":false,"merged":[[0,2,0,3],[25,2,25,3],[26,2,26,3],[27,2,27,3],[28,2,28,3]]}
[null,"أسـم الـعميل"]
[]
[]
["م","اســــم الــــــصـنــــــــــــف","كـــمـيــه","ســعــــر","قــيـمــه"]
[{"$f":"IF(B5>1,1,\" \")","v":" "},null,null,null,{"$f":"IFERROR(IF(C5>0.1,C5*D5,\" \"),\" \")","v":" "}]
[{"$f":"IF(B6>0.1,A5+1,\" \")","v":" "},null,null,null,{"$f":"IFERROR(IF(C6>0.1,C6*D6,\" \"),\" \")","v":" "}]
[{"$f":"IF(B7>0.1,A6+1,\" \")","v":" "},null,null,null," "]
[" ",null,null,null," "]
[" ",null,null,null," "]
[" ",null,null,null," "]
[" ",null,null,null," "]
[" ",null,null,null," "]
[" ",null,null,null," "]
[" ",null,null,null," "]
[" ",null,null,null," "]
[" ",null,null,null," "]
[" ",null,null,null," "]
[" ",null,null,null," "]
[" ",null,null,null," "]
[" ",null,null,null," "]
[" ",null,null,null," "]
[" ",null,null,null," "]
[" ",null,null,null," "]
[" ",null,null,null," "]
[]
[null,"عــدد الأصناف","الـقـيمه"]
[null,{"$f":"IF(B5>0.01,COUNTA(B5:B24),\" \")","v":" "},{"$f":"IF(D5>0.01,SUM(E5:E24),\" \")","v":" "}]
[null,"نولون"]
[null,"الأجمالى",{"$f":"IFERROR(C27+C28,\" \")","v":" "}]

{"sheet":"Sheet9","index":8,"n_rows":29,"n_cols":5,"rows_kept":29,"cut":false,"hidden":false,"merged":[[0,2,0,3],[25,2,25,3],[26,2,26,3],[27,2,27,3],[28,2,28,3]]}
[null,"أسـم الـعميل"]
[]
[]
["م","اســــم الــــــصـنــــــــــــف","كـــمـيــه","ســعــــر","قــيـمــه"]
[{"$f":"IF(B5>1,1,\" \")","v":" "},null,null,null,{"$f":"IFERROR(IF(C5>0.1,C5*D5,\" \"),\" \")","v":" "}]
[{"$f":"IF(B6>0.1,A5+1,\" \")","v":" "},null,null,null,{"$f":"IFERROR(IF(C6>0.1,C6*D6,\" \"),\" \")","v":" "}]
[{"$f":"IF(B7>0.1,A6+1,\" \")","v":" "},null,null,null," "]
[" ",null,null,null," "]
[" ",null,null,null," "]
[" ",null,null,null," "]
[" ",null,null,null," "]
[" ",null,null,null," "]
[" ",null,null,null," "]
[" ",null,null,null," "]
[" ",null,null,null," "]
[" ",null,null,null," "]
[" ",null,null,null," "]
[" ",null,null,null," "]
[" ",null,null,null," "]
[" ",null,null,null," "]
[" ",null,null,null," "]
[" ",null,null,null," "]
[" ",null,null,null," "]
[" ",null,null,null," "]
[]
[null,"عــدد الأصناف","الـقـيمه"]
[null,{"$f":"IF(B5>0.01,COUNTA(B5:B24),\" \")","v":" "},{"$f":"IF(D5>0.01,SUM(E5:E24),\" \")","v":" "}]
[null,"نولون"]
[null,"الأجمالى",{"$f":"IFERROR(C27+C28,\" \")","v":" "}]

{"sheet":"Sheet10","index":9,"n_rows":29,"n_cols":5,"rows_kept":29,"cut":false,"hidden":false,"merged":[[0,2,0,3],[25,2,25,3],[26,2,26,3],[27,2,27,3],[28,2,28,3]]}
[null,"أسـم الـعميل"]
[]
[]
["م","اســــم الــــــصـنــــــــــــف","كـــمـيــه","ســعــــر","قــيـمــه"]
[{"$f":"IF(B5>1,1,\" \")","v":" "},null,null,null,{"$f":"IFERROR(IF(C5>0.1,C5*D5,\" \"),\" \")","v":" "}]
[{"$f":"IF(B6>0.1,A5+1,\" \")","v":" "},null,null,null,{"$f":"IFERROR(IF(C6>0.1,C6*D6,\" \"),\" \")","v":" "}]
[{"$f":"IF(B7>0.1,A6+1,\" \")","v":" "},null,null,null," "]
[" ",null,null,null," "]
[" ",null,null,null," "]
[" ",null,null,null," "]
[" ",null,null,null," "]
[" ",null,null,null," "]
[" ",null,null,null," "]
[" ",null,null,null," "]
[" ",null,null,null," "]
[" ",null,null,null," "]
[" ",null,null,null," "]
[" ",null,null,null," "]
[" ",null,null,null," "]
[" ",null,null,null," "]
[" ",null,null,null," "]
[" ",null,null,null," "]
[" ",null,null,null," "]
[" ",null,null,null," "]
[]
[null,"عــدد الأصناف","الـقـيمه"]
[null,{"$f":"IF(B5>0.01,COUNTA(B5:B24),\" \")","v":" "},{"$f":"IF(D5>0.01,SUM(E5:E24),\" \")","v":" "}]
[null,"نولون"]
[null,"الأجمالى",{"$f":"IFERROR(C27+C28,\" \")","v":" "}]

{"sheet":"Sheet11","index":10,"n_rows":29,"n_cols":5,"rows_kept":29,"cut":false,"hidden":false,"merged":[[0,2,0,3],[25,2,25,3],[26,2,26,3],[27,2,27,3],[28,2,28,3]]}
[null,"أسـم الـعميل"]
[]
[]
["م","اســــم الــــــصـنــــــــــــف","كـــمـيــه","ســعــــر","قــيـمــه"]
[{"$f":"IF(B5>1,1,\" \")","v":" "},null,null,null,{"$f":"IFERROR(IF(C5>0.1,C5*D5,\" \"),\" \")","v":" "}]
[{"$f":"IF(B6>0.1,A5+1,\" \")","v":" "},null,null,null,{"$f":"IFERROR(IF(C6>0.1,C6*D6,\" \"),\" \")","v":" "}]
[{"$f":"IF(B7>0.1,A6+1,\" \")","v":" "},null,null,null," "]
[" ",null,null,null," "]
[" ",null,null,null," "]
[" ",null,null,null," "]
[" ",null,null,null," "]
[" ",null,null,null," "]
[" ",null,null,null," "]
[" ",null,null,null," "]
[" ",null,null,null," "]
[" ",null,null,null," "]
[" ",null,null,null," "]
[" ",null,null,null," "]
[" ",null,null,null," "]
[" ",null,null,null," "]
[" ",null,null,null," "]
[" ",null,null,null," "]
[" ",null,null,null," "]
[" ",null,null,null," "]
[]
[null,"عــدد الأصناف","الـقـيمه"]
[null,{"$f":"IF(B5>0.01,COUNTA(B5:B24),\" \")","v":" "},{"$f":"IF(D5>0.01,SUM(E5:E24),\" \")","v":" "}]
[null,"نولون"]
[null,"الأجمالى",{"$f":"IFERROR(C27+C28,\" \")","v":" "}]

{"sheet":"Sheet12","index":11,"n_rows":48,"n_cols":34,"rows_kept":48,"cut":false,"hidden":false,"merged":[]}
[null,null,null,null,null,null,null,null,null,null,null,null,null,null,null,null,null,null,null,null,null,null,null,null,null,null,null,null,null,null,null,null,null,2.2000000000000002]
[null,null,null,null,null,null,null,null,null,null,null,null,null,null,null,null,null,null,null,null,null,null,null,null,null,null,null,null,null,null,null,null,null,{"$f":"AH1+0.1","v":2.3000000000000003}]
[null,null,null,null,null,null,null,null,null,null,null,null,null,null,null,null,null,null,null,null,null,null,null,null,null,null,null,null,null,null,null,null,null,{"$f":"AH2+0.1","v":2.4000000000000004}]
[null,null,null,null,null,null,null,null,null,null,null,null,null,null,null,null,null,null,null,null,null,null,null,null,null,null,null,null,null,null,null,null,null,2.5000000000000004]
[null,null,null,null,null,null,null,null,null,null,null,null,null,null,null,null,null,null,null,null,null,null,null,null,null,null,null,null,null,null,null,null,null,2.6000000000000005]
[null,null,null,null,null,null,null,null,null,null,null,null,null,null,null,null,null,null,null,null,null,null,null,null,null,null,null,null,null,null,null,null,null,2.7000000000000006]
[null,null,null,"سـمـك ",null,"سـعـر الـطـن",null,"الـطـول",null,null,null,null,null,null,null,null,null,null,null,null,null,null,null,null,null,null,null,null,null,null,null,null,null,2.8000000000000007]
[null,null,null,2.8,null,31500,null,3,null,null,null,null,null,null,null,null,null,null,null,null,null,null,null,null,null,null,null,null,null,null,null,null,null,2.9000000000000008]
[null,null,null,null,null,null,null,null,null,null,null,null,null,null,null,null,null,null,null,null,null,null,null,null,null,null,null,null,null,null,null,null,null,3.0000000000000009]
[null,null,null,null,null,null,null,null,null,null,null,null,null,null,null,null,null,null,null,null,null,null,null,null,null,null,null,null,null,null,null,null,null,3.100000000000001]
[null,null,null,null,null,null,null,null,null,null,null,null,null,null,null,null,null,null,null,null,null,null,null,null,null,null,null,null,null,null,null,null,null,3.2000000000000011]
["الـصـنـف","وزن الـعـود","سـعـر الـعـود","وزن اللفه",null,"الـصـنـف","وزن الـعـود","سـمـك الـصـاج","سـعـر","سـعـر الـطـن",null,null,null,null,null,null,null,null,null,null,null,null,null,null,null,null,null,null,null,null,null,null,null,3.3000000000000012]
["زاويـه",{"$f":"D8*H8*7.85/1000*4.5","v":0.29672999999999994},{"$f":"B13*F8/1000","v":9.3469949999999979},{"$f":"B13*30","v":8.9018999999999977},null,"زاويـه",null,{"$f":"G13/105.975","v":0},null,{"$f":"IFERROR(I13/G13*1000000,\"القدس\")","v":"القدس"},null,null,null,null,null,null,null,null,null,null,null,null,null,null,null,null,null,null,null,null,null,null,null,3.4000000000000012]
["اومــيــجــا",{"$f":"D8*H8*7.85/1000*9","v":0.59345999999999988},{"$f":"B14*F8/1000","v":18.693989999999996},{"$f":"B14*20","v":11.869199999999998},null,"اومــيــجــا",null,{"$f":"G14/211.95","v":0},null,{"$f":"IFERROR(I14/G14*1000000,\"القدس\")","v":"القدس"},null,null,null,null,null,null,null,null,null,null,null,null,null,null,null,null,null,null,null,null,null,null,null,3.5000000000000013]
["نــاعم 38",{"$f":"D8*H8*7.85/1000*6.5","v":0.42860999999999988},{"$f":"B15*F8/1000","v":13.501214999999997},{"$f":"B15*20","v":8.5721999999999969},null,"نــاعم 38",null,{"$f":"G15/153.075","v":0},null,"القدس",null,null,null,null,null,null,null,null,null,null,null,null,null,null,null,null,null,null,null,null,null,null,null,3.6000000000000014]
["زاويــه 2.5 × 2.5",{"$f":"D8*H8*7.85/1000*5","v":0.32969999999999994},{"$f":"B16*F8/1000","v":10.385549999999997},{"$f":"B16*30","v":9.8909999999999982},null,"زاويــه 2.5 × 2.5",null,{"$f":"G16/117.75","v":0},null,{"$f":"IFERROR(I16/G16*1000000,\"القدس\")","v":"القدس"},null,null,null,null,null,null,null,null,null,null,null,null,null,null,null,null,null,null,null,null,null,null,null,3.7000000000000015]
[null,null,null,null,null,null,null,null,null,null,null,null,null,null,null,null,null,null,null,null,null,null,null,null,null,null,null,null,null,null,null,null,null,3.8000000000000016]
[null,null,null,null,null,"سـعـر الـطـن",null,null,null,null,null,null,null,null,null,null,null,null,null,null,null,null,null,null,null,null,null,null,null,null,null,null,null,3.9000000000000017]
[null,null,null,null,null,16200,null,null,null,null,null,null,null,null,null,null,null,null,null,null,null,null,null,null,null,null,null,null,null,null,null,null,null,4.0000000000000018]
[null,null,null,null,null,null,null,null,null,null,null,null,null,null,null,null,null,null,null,null,null,null,null,null,null,null,null,null,null,null,null,null,null,4.1000000000000014]
["نـاعـم 5",{"$f":"D8*H8*7.85/1000*9","v":0.59345999999999988},{"$f":"B21*($F$19/1000)","v":9.6140519999999974},null,null,"نـاعـم 5",null,{"$f":"G21/(7.85*9*3)","v":0},null,"القدس",null,null,null,null,null,null,null,null,null,null,null,null,null,null,null,null,null,null,null,null,null,null,null,4.2000000000000011]
["خـشـن 5",{"$f":"D8*H8*7.85/1000*12","v":0.79127999999999976},12.818735999999996,null,null,"خـشـن 5",null,{"$f":"G22/(7.85*12*3)","v":0},null,"القدس",null,null,null,null,null,null,null,null,null,null,null,null,null,null,null,null,null,null,null,null,null,null,null,4.3000000000000007]
["نـاعم 7",{"$f":"D8*H8*7.85/1000*11","v":0.72533999999999987},11.750507999999998,null,null,"نـاعم 7",null,{"$f":"G23/(7.85*11*3)","v":0},null,"القدس",null,null,null,null,null,null,null,null,null,null,null,null,null,null,null,null,null,null,null,null,null,null,null,4.4000000000000004]
["خـشـن 7",{"$f":"D8*H8*7.85/1000*14","v":0.92315999999999976},14.955191999999995,null,null,"خـشـن 7",null,{"$f":"G24/(7.85*14*3)","v":0},null,"القدس",null,null,null,null,null,null,null,null,null,null,null,null,null,null,null,null,null,null,null,null,null,null,null,4.5]
["نـاعم 10",{"$f":"D8*H8*7.85/1000*14","v":0.92315999999999976},14.955191999999995,null,null,"نـاعم 10",null,{"$f":"G25/(7.85*14*3)","v":0},null,"القدس",null,null,null,null,null,null,null,null,null,null,null,null,null,null,null,null,null,null,null,null,null,null,null,4.5999999999999996]
["خـشـن 10",{"$f":"D8*H8*7.85/1000*16","v":1.0550399999999998},17.091647999999996,null,null,"خـشـن 10",null,{"$f":"G26/(7.85*16*3)","v":0},null,"القدس",null,null,null,null,null,null,null,null,null,null,null,null,null,null,null,null,null,null,null,null,null,null,null,4.6999999999999993]
[null,null,null,null,null,null,null,null,null,null,null,null,null,null,null,null,null,null,null,null,null,null,null,null,null,null,null,null,null,null,null,null,null,4.7999999999999989]
[null,null,null,null,null,null,null,null,null,null,null,null,null,null,null,null,null,null,null,null,null,null,null,null,null,null,null,null,null,null,null,null,null,4.8999999999999986]
[null,null,null,null,null,null,null,null,null,null,null,null,null,null,null,null,null,null,null,null,null,null,null,null,null,null,null,null,null,null,null,null,null,4.9999999999999982]
[null,null,null,null,null,null,null,null,null,null,null,null,null,null,null,null,null,null,null,null,null,null,null,null,null,null,null,null,null,null,null,null,null,5.0999999999999979]
[null,null,null,null,null,null,null,null,null,null,null,null,null,null,null,null,null,null,null,null,null,null,null,null,null,null,null,null,null,null,null,null,null,5.1999999999999975]
[null,null,null,null,null,null,null,null,null,null,null,null,null,null,null,null,null,null,null,null,null,null,null,null,null,null,null,null,null,null,null,null,null,5.2999999999999972]
[null,null,null,null,null,null,null,null,null,null,null,null,null,null,null,null,null,null,null,null,null,null,null,null,null,null,null,null,null,null,null,null,null,5.3999999999999968]
[null,null,null,null,null,null,null,null,null,null,null,null,null,null,null,null,null,null,null,null,null,null,null,null,null,null,null,null,null,null,null,null,null,5.4999999999999964]
[null,null,null,null,null,null,null,null,null,null,null,null,null,null,null,null,null,null,null,null,null,null,null,null,null,null,null,null,null,null,null,null,null,5.5999999999999961]
[null,null,null,null,null,null,null,null,null,null,null,null,null,null,null,null,null,null,null,null,null,null,null,null,null,null,null,null,null,null,null,null,null,5.6999999999999957]
[null,null,null,null,null,null,null,null,null,null,null,null,null,null,null,null,null,null,null,null,null,null,null,null,null,null,null,null,null,null,null,null,null,5.7999999999999954]
[null,null,null,null,null,null,null,null,null,null,null,null,null,null,null,null,null,null,null,null,null,null,null,null,null,null,null,null,null,null,null,null,null,5.899999999999995]
[null,null,null,null,null,null,null,null,null,null,null,null,null,null,null,null,null,null,null,null,null,null,null,null,null,null,null,null,null,null,null,null,null,5.9999999999999947]
[null,null,null,null,null,null,null,null,null,null,null,null,null,null,null,null,null,null,null,null,null,null,null,null,null,null,null,null,null,null,null,null,null,6.0999999999999943]
[null,null,null,null,null,null,null,null,null,null,null,null,null,null,null,null,null,null,null,null,null,null,null,null,null,null,null,null,null,null,null,null,null,6.199999999999994]
[null,null,null,null,null,null,null,null,null,null,null,null,null,null,null,null,null,null,null,null,null,null,null,null,null,null,null,null,null,null,null,null,null,6.2999999999999936]
[null,null,null,null,null,null,null,null,null,null,null,null,null,null,null,null,null,null,null,null,null,null,null,null,null,null,null,null,null,null,null,null,null,6.3999999999999932]
[null,null,null,null,null,null,null,null,null,null,null,null,null,null,null,null,null,null,null,null,null,null,null,null,null,null,null,null,null,null,null,null,null,6.4999999999999929]
[null,null,null,null,null,null,null,null,null,null,null,null,null,null,null,null,null,null,null,null,null,null,null,null,null,null,null,null,null,null,null,null,null,6.5999999999999925]
[null,null,null,null,null,null,null,null,null,null,null,null,null,null,null,null,null,null,null,null,null,null,null,null,null,null,null,null,null,null,null,null,null,6.6999999999999922]
[null,null,null,null,null,null,null,null,null,null,null,null,null,null,null,null,null,null,null,null,null,null,null,null,null,null,null,null,null,null,null,null,null,6.7999999999999918]
[null,null,null,null,null,null,null,null,null,null,null,null,null,null,null,null,null,null,null,null,null,null,null,null,null,null,null,null,null,null,null,null,null,6.8999999999999915]

{"sheet":"Sheet13","index":12,"n_rows":14,"n_cols":19,"rows_kept":14,"cut":false,"hidden":false,"merged":[]}
[]
[]
[]
[]
[]
[]
[]
[]
[]
["الوقت","النوع","بيان",null,null,null,null,null,null,null,null,null,null,null,null,null,null,null,"متابعة عميل"]
[null,null,null,null,null,null,null,null,null,null,null,null,null,null,null,null,null,null,"مخزون"]
[null,null,null,null,null,null,null,null,null,null,null,null,null,null,null,null,null,null,"أسعار "]
[null,null,null,null,null,null,null,null,null,null,null,null,null,null,null,null,null,null,"مشاكل واقتراحات"]
[null,null,null,null,null,null,null,null,null,null,null,null,null,null,null,null,null,null,"اجازه وأذون"]

{"sheet":"Sheet14","index":13,"n_rows":49,"n_cols":22,"rows_kept":49,"cut":false,"hidden":false,"merged":[[46,2,46,3],[47,2,47,3],[48,2,48,3],[3,0,3,1],[41,2,41,3],[42,2,42,3],[43,2,43,3],[44,2,44,3],[45,2,45,3]]}
[]
[]
[null,null,{"$f":"TEXT(D3,\"dddd\")","v":"Tuesday"},{"$f":"TODAY()","v":"2022-05-17"}]
["أ / أمير"]
["مـديـن","دائـن","الــبـيـان","الــوقــت","اسـم الـسـائـق","التوقيع"]
[]
[]
[null,null,null,null,null,null,null,null,null,null,null,null,null,null,null,null,null,null,null,null,null,"تـــحــت الـــتـســويــه"]
[null,null,null,null,null,null,null,null,null,null,null,null,null,null,null,null,null,null,null,null,null,"أجـــل"]
[null,null,null,null,null,null,null,null,null,null,null,null,null,null,null,null,null,null,null,null,null,"تــحصــيــل"]
[null,null,null,null,null,null,null,null,null,null,null,null,null,null,null,null,null,null,null,null,null,"خزينه"]
[]
[]
[]
[]
[]
[]
[]
[]
[]
[]
[]
[]
[]
[]
[]
[]
[]
[]
[]
[]
[]
[]
[]
[]
[]
[]
[]
[]
[]
[]
[null,null,"عــدد الاذون",null,{"$f":"COUNTIF(A6:A40,\">0\")-COUNTIF(F6:F40,\"تحصيل\")","v":0}]
[null,null," المـبـيـعـات الـيـومـيــه",null,{"$f":"SUM(A6:A40)-SUMIF(F6:F40,\"تــحصــيــل\",A6:A40)","v":0}]
[null,null,"تــحصــيــل ",null,{"$f":"SUMIF(F6:F40,\"تــحصــيــل\",A6:A40)","v":0}]
[null,null,"تحت التسويه",null,{"$f":"SUMIF(F6:F40,\"تـــحــت الـــتـســويــه\",A6:A40)","v":0}]
[null,null,"أجـــل",null,{"$f":"SUMIF(F6:F40,\"أجل\",A6:A40)","v":0}]
[null,null,"المدفوعات",0.47094907407407405,{"$f":"SUM(B6:B40)","v":0}]
[null,null,"خزينه",null,{"$f":"SUMIF(F6:F40,\"خزينه\",A6:A40)","v":0}]
[null,null,"الـرصـيـد",null,{"$f":"E43+E44-E45-E46-E47-E48","v":0}]

{"sheet":"Sheet16","index":14,"n_rows":19,"n_cols":8,"rows_kept":19,"cut":false,"hidden":false,"merged":[]}
[]
[]
[]
[]
[]
[]
[]
[null,"وحـده","عــدد","قيمه",null,"وحـده","عــدد","قيمه"]
[null,200,24,{"$f":"C9*B9","v":4800},null,200,63,{"$f":"G9*F9","v":12600}]
[null,100,27,2700,null,100,42,4200]
[null,50,null,0,null,50,2,100]
[null,20,null,0,null,20,12,240]
[null,10,null,0,null,10,6,60]
[null,5,null,0,null,5,2,10]
[null,"جُـنـيـه",null,{"$f":"C15","v":0},null,{"$f":"B15","v":"جُـنـيـه"},null,{"$f":"G15","v":0}]
[null,0.5,null,{"$f":"C16/2","v":0},null,0.5,null,{"$f":"G16/2","v":0}]
[null,"الأجمالى",{"$f":"SUM(C9:C16)","v":51},{"$f":"SUM(D9:D16)","v":7500},null,"الأجمالى",{"$f":"SUM(G9:G16)","v":127},{"$f":"SUM(H9:H16)","v":17210}]
[null,null,null,null,null,null,{"$f":"IF(H18=0,\"مطابق\",IF(H18<0,\"عجز\",IF(H18>0,\"زياده\")))","v":"عجز"},-15795]
[null,null,null,null,null,null,{"$f":"IF(H18=0,\"مطابق\",IF(H18<0,\"عجز\",IF(H18>0,\"زياده\")))","v":"عجز"}]

{"sheet":"Sheet17","index":15,"n_rows":14,"n_cols":12,"rows_kept":14,"cut":false,"hidden":false,"merged":[]}
[]
[]
[]
[]
[]
[]
[null,null,null,null,"عـدد الامـتـار"]
[]
[]
[null,null,null,"عـدد","كـرتـونـه","عـدد الـكـراتـين","عـود",null,null,null,"عـدد","امـتـار"]
[null,null,"عـود 3.6",{"$f":"E8*0.22","v":0},25,{"$f":"INT(D11/E11)","v":0},{"$f":"D11-(F11*E11)","v":0},null,null,"عـود 3.6",null,{"$f":"K11/0.22","v":0}]
[null,null,"عـود 120",{"$f":"E8*1.3","v":0},75,{"$f":"INT(D12/E12)","v":0},{"$f":"D12-(F12*E12)","v":0},null,null,"عـود 120",null,{"$f":"K12/1.3","v":0}]
[null,null,"عـود 60",{"$f":"E8*1.3","v":0},75,{"$f":"INT(D13/E13)","v":0},{"$f":"D13-(F13*E13)","v":0},null,null,"عـود 60",null,{"$f":"K13/1.3","v":0}]
[null,null,"كـورنـيـر",{"$f":"E8*0.24","v":0},30,{"$f":"INT(D14/E14)","v":0},{"$f":"D14-(F14*E14)","v":0},null,null,"كـورنـيـر",null,{"$f":"K14/0.24","v":0}]